[Event "Icelandic Team-ch Kvika Leagu 2023-24"]
[Site "Reykjavik"]
[Date "2024.03.01"]
[Round "1.21"]
[White "Petursson, Margeir"]
[Black "Ingvason, Johann"]
[Result "1-0"]
[ECO "E01"]
[WhiteElo "2406"]
[BlackElo "2072"]
[Annotator "RC"]
[PlyCount "103"]
[EventDate "2024.02.29"]
[EventType "team-tourn"]
[EventCountry "ISL"]
[SourceTitle "playchess.com"]
[Source "ChessBase"]
[SourceQuality "1"]
[TimeControl "40/5400+30:900+30"]

1. d4 {[%emt 0:00:08]} d5 {[%emt 0:00:30]} 2. c4 {[%emt 0:00:08]} c6 {[%emt 0:00:20]} 3. Nf3 {[%emt 0:00:11]} Nf6 {[%emt 0:00:28]} 4. Nc3 {[%emt 0:00:08]} e6 {[%emt 0:00:07]} 5. g3 {[%emt 0:00:15]} Nbd7 {[%emt 0:00:22]} 6. Bg2 {[%emt 0:00:28]} Bd6 {[%emt 0:01:17]} 7. Qd3 {[%emt 0:01:07]} O-O {[%emt 0:01:17]} 8. O-O {[%emt 0:00:24]} b6 {[%emt 0:02:45]} 9. Nd2 {[%emt 0:12:19]} Bb7 {[%emt 0:02:11]} 10. e4 {[%emt 0:03:23]} dxe4 {[%emt 0:02:52]} 11. Ndxe4 {[%emt 0:01:02]} Nxe4 {[%emt 0:03:20]} 12. Nxe4 {[%emt 0:01:33]} Be7 {[%emt 0:00:09]} 13. Rd1 {[%emt 0:11:01]} Qc7 {[%emt 0:14:23]} 14. Bf4 {[%emt 0:06:57]} e5 {[%emt 0:00:38]} 15. dxe5 {[%emt 0:00:57]} Nxe5 {[%emt 0:01:31]} 16. Qc3 {[%emt 0:00:44]} f6 {[%emt 0:00:46]} 17. Ng5 {[%emt 0:08:57]} Bc8 {[%emt 0:06:02]} 18. Nf3 {[%emt 0:02:37]} Bd6 {[%emt 0:19:53]} 19. Nxe5 {[%emt 0:03:39]} fxe5 {[%emt 0:00:27]} 20. Be3 {[%emt 0:01:23]} Bg4 {[%emt 0:09:28]} 21. Rd2 {[%emt 0:01:00]} Qe7 {[%emt 0:03:42]} 22. a3 {[%emt 0:09:04]} Rac8 {[%emt 0:08:47]} 23. Re1 {[%emt 0:05:54]} c5 {[%emt 0:03:44]} 24. Bf4 {[%emt 0:03:14]} Rfe8 {[%emt 0:03:07]} 25. h3 {[%emt 0:03:42]} Bh5 {[%emt 0:01:58]} 26. g4 {[%emt 0:04:37]} Bg6 {[%emt 0:00:14]} 27. Rde2 {[%emt 0:00:59]} exf4 {[%emt 0:06:14]} 28. Rxe7 {[%emt 0:00:21]} Rxe7 {[%emt 0:00:02]} 29. Rxe7 {[%emt 0:01:13]} Bxe7 {[%emt 0:00:02]} 30. Qe5 {[%emt 0:01:45]} Re8 {[%emt 0:00:09]} 31. Bc6 {[%emt 0:03:59]} Bf6 {[%emt 0:00:13]} 32. Qxf4 {[%emt 0:01:05]} Rf8 {[%emt 0:03:12]} 33. Bd5+ {[%emt 0:03:41]} Bf7 {[%emt 0:00:02]} 34. Qd6 {[%emt 0:00:27]} Bxb2 {[%emt 0:01:39]} 35. a4 {[%emt 0:01:38]} Bd4 {[%emt 0:00:36]} 36. Kg2 {[%emt 0:01:03]} Bxf2 {[%emt 0:01:40]} 37. Bxf7+ {[%emt 0:00:43]} Rxf7 {[%emt 0:00:04]} 38. Qb8+ {[%emt 0:00:11]} Rf8 {[%emt 0:00:12]} 39. Qxa7 {[%emt 0:00:05]} Bd4 {[%emt 0:04:31]} 40. Qxb6 {[%emt 0:00:00]} g5 {[%emt 0:00:00]} 41. a5 {[%emt 0:03:02]} Rf2+ {[%emt 0:07:41]} 42. Kg3 {[%emt 0:00:37]} Rf6 {[%emt 0:00:31]} 43. Qb8+ {[%emt 0:03:05]} Rf8 {[%emt 0:01:29]} 44. Qd6 {[%emt 0:00:14]} Rf6 {[%emt 0:00:20]} 45. Qd5+ {[%emt 0:00:17]} Kf8 {[%emt 0:05:14]} 46. Qxg5 {[%emt 0:01:37]} Ra6 {[%emt 0:00:48]} 47. Qf5+ {[%emt 0:01:08]} Kg7 {[%emt 0:00:21]} 48. Qd7+ {[%emt 0:02:29]} Kf6 {[%emt 0:00:55]} 49. Qb5 {[%emt 0:00:48]} Re6 {[%emt 0:01:12]} 50. a6 {[%emt 0:01:20]} h5 {[%emt 0:00:16]} 51. a7 {[%emt 0:02:39]} h4+ {[%emt 0:02:41]} 52. Kf4 {[%emt 0:00:31]} 1-0

[Event "Icelandic Team-ch Kvika Leagu 2023-24"]
[Site "Reykjavik"]
[Date "2024.02.29"]
[Round "1.22"]
[White "Sverrisson, Nokkvi"]
[Black "Thorhallsson, Throstur"]
[Result "1/2-1/2"]
[ECO "B33"]
[WhiteElo "2052"]
[BlackElo "2388"]
[Annotator "RC"]
[PlyCount "53"]
[EventDate "2024.02.29"]
[EventType "team-tourn"]
[EventCountry "ISL"]
[SourceTitle "playchess.com"]
[Source "ChessBase"]
[SourceQuality "1"]
[TimeControl "40/5400+30:900+30"]

1. e4 {[%emt 0:00:04]} c5 {[%emt 0:09:51]} 2. Nf3 {[%emt 0:00:09]} Nc6 {[%emt 0:01:10]} 3. d4 {[%emt 0:00:09]} cxd4 {[%emt 0:00:05]} 4. Nxd4 {[%emt 0:00:06]} Nf6 {[%emt 0:00:13]} 5. Nc3 {[%emt 0:00:11]} Qb6 {[%emt 0:00:23]} 6. Nb3 {[%emt 0:01:15]} e6 {[%emt 0:00:22]} 7. Bd3 {[%emt 0:02:33]} a6 {[%emt 0:01:02]} 8. Be3 {[%emt 0:00:42]} Qc7 {[%emt 0:00:18]} 9. f4 {[%emt 0:02:26]} d6 {[%emt 0:02:29]} 10. g4 {[%emt 0:02:16]} b5 {[%emt 0:03:02]} 11. g5 {[%emt 0:01:47]} Nd7 {[%emt 0:00:19]} 12. Qd2 {[%emt 0:08:34]} Nb6 {[%emt 0:04:12]} 13. O-O-O {[%emt 0:07:34]} Nc4 {[%emt 0:06:26]} 14. Bxc4 {[%emt 0:01:09]} bxc4 {[%emt 0:00:06]} 15. Nd4 {[%emt 0:00:07]} Rb8 {[%emt 0:03:38]} 16. Nxc6 {[%emt 0:10:40]} Qxc6 {[%emt 0:00:17]} 17. Qd4 {[%emt 0:00:10]} Bd7 {[%emt 0:09:38]} 18. f5 {[%emt 0:10:17]} Qb7 {[%emt 0:02:54]} 19. fxe6 {[%emt 0:10:35]} fxe6 {[%emt 0:01:00]} 20. Rhf1 {[%emt 0:07:59]} Rg8 {[%emt 0:10:07]} 21. g6 {[%emt 0:09:37]} hxg6 {[%emt 0:05:21]} 22. Rxf8+ {[%emt 0:00:12]} Rxf8 {[%emt 0:00:49]} 23. Qxg7 {[%emt 0:00:26]} Bc6 {[%emt 0:03:45]} 24. Qxg6+ {[%emt 0:00:54]} Qf7 {[%emt 0:00:20]} 25. Qxf7+ {[%emt 0:00:59]} Rxf7 {[%emt 0:00:30]} 26. Rxd6 {[%emt 0:01:10]} Rf1+ {[%emt 0:01:12]} 27. Kd2 {[%emt 0:01:24]} 1/2-1/2

[Event "Icelandic Team-ch Kvika Leagu 2023-24"]
[Site "Reykjavik"]
[Date "2024.02.29"]
[Round "1.23"]
[White "Prudnykova, Olga"]
[Black "Bjornsson, Sverrir Orn"]
[Result "1-0"]
[ECO "C26"]
[WhiteElo "2241"]
[BlackElo "2098"]
[Annotator "RC"]
[PlyCount "75"]
[EventDate "2024.02.29"]
[EventType "team-tourn"]
[EventCountry "ISL"]
[SourceTitle "playchess.com"]
[Source "ChessBase"]
[SourceQuality "1"]
[TimeControl "40/5400+30:900+30"]

1. e4 {[%emt 0:00:03]} Nf6 {[%emt 0:01:33]} 2. Nc3 {[%emt 0:00:05]} e5 {[%emt 0:00:24]} 3. d4 {[%emt 0:01:11]} exd4 {[%emt 0:03:47]} 4. Qxd4 {[%emt 0:00:05]} Nc6 {[%emt 0:00:47]} 5. Qc4 {[%emt 0:00:06]} d6 {[%emt 0:04:07]} 6. Bf4 {[%emt 0:00:29]} Be7 {[%emt 0:15:42]} 7. O-O-O {[%emt 0:00:16]} Be6 {[%emt 0:01:17]} 8. Nd5 {[%emt 0:01:39]} O-O {[%emt 0:02:23]} 9. h4 {[%emt 0:00:57]} Ng4 {[%emt 0:07:20]} 10. Bg3 {[%emt 0:05:51]} Bf6 {[%emt 0:06:08]} 11. Nf3 {[%emt 0:05:51]} Be5 {[%emt 0:11:13]} 12. Nxe5 {[%emt 0:01:11]} Ngxe5 {[%emt 0:00:22]} 13. Qc3 {[%emt 0:05:34]} Nd7 {[%emt 0:07:48]} 14. f3 {[%emt 0:05:26]} a5 {[%emt 0:04:54]} 15. a3 {[%emt 0:04:03]} Bxd5 {[%emt 0:01:19]} 16. exd5 {[%emt 0:00:22]} Ne7 {[%emt 0:03:19]} 17. Bf2 {[%emt 0:05:35]} Qb8 {[%emt 0:05:59]} 18. h5 {[%emt 0:01:36]} h6 {[%emt 0:01:01]} 19. g4 {[%emt 0:04:57]} f6 {[%emt 0:02:59]} 20. f4 {[%emt 0:12:35]} b5 {[%emt 0:01:33]} 21. Bd3 {[%emt 0:00:46]} b4 {[%emt 0:01:13]} 22. Qe1 {[%emt 0:00:12]} bxa3 {[%emt 0:04:26]} 23. bxa3 {[%emt 0:00:15]} Qd8 {[%emt 0:05:32]} 24. Qe6+ {[%emt 0:03:47]} Kh8 {[%emt 0:00:56]} 25. Rde1 {[%emt 0:00:46]} Re8 {[%emt 0:00:41]} 26. g5 {[%emt 0:05:08]} Nf8 {[%emt 0:00:45]} 27. Qf7 {[%emt 0:00:26]} Ng8 {[%emt 0:01:12]} 28. Bb5 {[%emt 0:06:01]} Re7 {[%emt 0:00:53]} 29. Rxe7 {[%emt 0:00:12]} Qxe7 {[%emt 0:00:13]} 30. Qxe7 {[%emt 0:01:15]} Nxe7 {[%emt 0:00:07]} 31. Re1 {[%emt 0:00:18]} Ng8 {[%emt 0:04:19]} 32. g6 {[%emt 0:00:42]} f5 {[%emt 0:00:13]} 33. Bh4 {[%emt 0:02:22]} Rb8 {[%emt 0:00:36]} 34. a4 {[%emt 0:00:51]} Ra8 {[%emt 0:00:48]} 35. Kd2 {[%emt 0:00:41]} Nf6 {[%emt 0:00:45]} 36. Bxf6 {[%emt 0:00:07]} gxf6 {[%emt 0:00:07]} 37. Re7 {[%emt 0:00:07]} Kg8 {[%emt 0:00:21]} 38. Rxc7 {[%emt 0:01:18]} 1-0

[Event "Icelandic Team-ch Kvika Leagu 2023-24"]
[Site "Reykjavik"]
[Date "2024.02.29"]
[Round "1.24"]
[White "Fridbertsson, Aegir"]
[Black "Mai, Alexander Oliver"]
[Result "0-1"]
[ECO "E53"]
[WhiteElo "2075"]
[BlackElo "2160"]
[Annotator "ChessBase"]
[PlyCount "64"]
[EventDate "2024.02.29"]
[EventType "team-tourn"]
[EventCountry "ISL"]
[SourceTitle "playchess.com"]
[Source "ChessBase"]
[SourceQuality "1"]
[TimeControl "40/5400+30:900+30"]

1. d4 {[%emt 0:06:54]} Nf6 {[%emt 0:00:10]} 2. c4 {[%emt 0:00:13]} e6 {[%emt 0:00:08]} 3. Nf3 {[%emt 0:00:12]} d5 {[%emt 0:00:11]} 4. Nc3 {[%emt 0:01:16]} Bb4 {[%emt 0:00:37]} 5. e3 {[%emt 0:00:50]} O-O {[%emt 0:00:21]} 6. Bd3 {[%emt 0:00:28]} dxc4 {[%emt 0:03:19]} 7. Bxc4 {[%emt 0:00:11]} c5 {[%emt 0:00:15]} 8. a3 {[%emt 0:01:49]} Bxc3+ {[%emt 0:03:02]} 9. bxc3 {[%emt 0:00:09]} Qc7 {[%emt 0:04:08]} 10. Qd3 {[%emt 0:03:38]} Nc6 {[%emt 0:04:09]} 11. O-O {[%emt 0:02:04]} e5 {[%emt 0:01:29]} 12. dxe5 {[%emt 0:06:47]} Nxe5 {[%emt 0:01:51]} 13. Nxe5 {[%emt 0:00:09]} Qxe5 {[%emt 0:00:07]} 14. f3 {[%emt 0:02:19]} Be6 {[%emt 0:02:59]} 15. Bxe6 {[%emt 0:01:33]} Qxe6 {[%emt 0:00:14]} 16. c4 {[%emt 0:01:45]} Rad8 {[%emt 0:02:29]} 17. Qc3 {[%emt 0:00:54]} Rd7 {[%emt 0:01:59]} 18. e4 {[%emt 0:06:57]} Rd4 {[%emt 0:02:41]} 19. Qa5 {[%emt 0:01:39]} Qxc4 {[%emt 0:33:03]} 20. Be3 {[%emt 0:09:38]} b6 {[%emt 0:05:35]} 21. Qxa7 {[%emt 0:01:13]} Rd3 {[%emt 0:00:23]} 22. Bg5 {[%emt 0:02:35]} Qd4+ {[%emt 0:01:40]} 23. Kh1 {[%emt 0:00:55]} Nd7 {[%emt 0:03:48]} 24. Qc7 {[%emt 0:03:49]} h6 {[%emt 0:03:28]} 25. Bh4 {[%emt 0:03:33]} Rd2 {[%emt 0:00:59]} 26. a4 {[%emt 0:03:09]} Ra8 {[%emt 0:02:34]} 27. Qc6 {[%emt 0:01:38]} Ra5 {[%emt 0:00:49]} 28. Bd8 {[%emt 0:06:22]} c4 {[%emt 0:02:10]} 29. Rac1 {[%emt 0:04:00]} Rc5 {[%emt 0:01:33]} 30. Qb7 {[%emt 0:01:47]} Qd6 {[%emt 0:02:36]} 31. g3 {[%emt 0:02:21]} Rh5 {[%emt 0:02:13]} 32. Bh4 {[%emt 0:01:42]} Rxh4 {[%emt 0:00:26]} 0-1

[Event "Icelandic Team-ch Kvika Leagu 2023-24"]
[Site "Reykjavik"]
[Date "2024.03.01"]
[Round "6"]
[White "Pultinevicius, Paulius"]
[Black "Donchenko, Alexander"]
[Result "1-0"]
[ECO "D38"]
[WhiteElo "2575"]
[BlackElo "2643"]
[Annotator "TA"]
[PlyCount "83"]
[EventDate "2024.02.29"]
[EventType "team-tourn"]
[EventCountry "ISL"]
[SourceTitle "playchess.com"]
[Source "ChessBase"]
[SourceQuality "1"]
[TimeControl "40/5400+30:900+30"]

{[%evp 19,83,0,0,14,20,14,20,28,22,18,13,18,19,14,19,23,21,20,23,34,47,26,27,27,29,0,50,42,37,44,56,55,46,54,50,54,59,60,80,76,87,91,178,184,185,178,186,181,210,170,162,159,251,232,310,223,223,214,29958,278,29977,29978,29976,29977,29972,29971]} 1. d4 {[%emt 0:00:01]} Nf6 {[%emt 0:00:07]} 2. c4 {[%emt 0:00:05]} e6 {[%emt 0:00:05]} 3. Nf3 {[%emt 0:00:04]} d5 {[%emt 0:00:12]} 4. Nc3 {[%emt 0:00:05]} Bb4 {[%emt 0:00:15]} 5. cxd5 {[%emt 0:00:24]} exd5 {[%emt 0:00:08]} 6. Bf4 {[%emt 0:00:05] D38: Queen's Gambit Declined: Ragozin Defence (4 Nf3 Bb4).} O-O {[%emt 0:01:08]} 7. e3 {[%emt 0:00:12]} c5 {[%emt 0:00:28]} 8. Bd3 {[%emt 0:00:53]} Bg4 {[%emt 0:01:38]} 9. a3 {[%emt 0:03:02]} Bxc3+ {[%emt 0:00:51]} 10. bxc3 {[%emt 0:00:06]} Nh5 $146 {[%emt 0:00:57]} ({Predecessor:} 10... Qa5 11. O-O c4 12. Bc2 Ne4 13. Qb1 Bxf3 14. gxf3 Nxc3 15. Qxb7 Na6 16. Rfe1 Qb5 17. Qxb5 Nxb5 18. Ba4 Nac7 19. Bxb5 Nxb5 20. a4 {1-0 Zelbel,P (2429)-Haug,J (2391) EU-Cup 34th Porto Carras 2018 (2.4)}) 11. Be5 {[%emt 0:05:26]} Nc6 {[%emt 0:00:43]} 12. h3 {[%emt 0:00:26]} Bxf3 {[%emt 0:00:57]} 13. Qxf3 {[%emt 0:00:20]} g6 {[%emt 0:00:21]} 14. O-O {[%emt 0:08:10]} c4 {[%emt 0:17:01]} (14... Nxe5 {simplifies} 15. dxe5 Re8 16. g4 Ng7) 15. Be2 {[%emt 0:13:42]} Qa5 {[%emt 0:09:13]} 16. Rab1 {[%emt 0:17:48]} Nxe5 {[%emt 0:00:50]} 17. dxe5 {[%emt 0:00:05]} Rae8 {[%emt 0:00:20]} 18. Rxb7 {[%emt 0:03:34]} Rxe5 {[%emt 0:02:05]} 19. g4 {[%emt 0:02:47]} Ng7 {[%emt 0:03:15]} 20. Qf6 {[%emt 0:08:43]} Qxc3 {[%emt 0:12:43]} 21. Re7 {[%emt 0:03:40]} Ne6 {[%emt 0:00:47]} 22. a4 {[%emt 0:03:38]} a5 {[%emt 0:13:34]} ({Better is} 22... Qb4 $11) 23. Rd7 $1 $14 {[%emt 0:01:51]} Ng5 $1 {[%emt 0:13:06]} 24. Rxd5 {[%emt 0:02:38]} Rxe3 {[%emt 0:01:02]} (24... Nxh3+ 25. Kg2 Rfe8 26. Rxe5 (26. Kxh3 $2 Rh5+ 27. Rxh5 Qxf6 $19) 26... Qxe5 27. Qxe5 Rxe5 28. Kxh3 $18) 25. fxe3 {[%emt 0:02:30]} Qxe3+ {[%emt 0:00:06]} 26. Rf2 $1 {[%emt 0:00:16]} Nxh3+ {[%emt 0:00:11]} 27. Kg2 {[%emt 0:00:39]} Nxf2 {[%emt 0:00:06]} 28. Qxf2 {[%emt 0:00:05]} Qb3 {[%emt 0:01:27]} 29. Bd1 {[%emt 0:04:17]} Qb7 {[%emt 0:02:11]} 30. Qf3 {[%emt 0:00:53]} c3 {[%emt 0:02:02]} (30... Qb2+ $16 31. Kh3 Qb4) 31. Rc5 $1 $18 {[%emt 0:01:53]} (31. Rxa5 c2 32. Bxc2 (32. Qxb7 cxd1=Q 33. Ra8 Qxg4+ 34. Kf2 Qh4+ 35. Ke2 Qh5+ 36. Ke3 Qh3+ 37. Ke2 Qh2+ 38. Kd1 Qh5+ 39. Kd2 Qh4 $17) 32... Qc7 $11) 31... Qd7 {[%emt 0:07:06]} 32. Rxc3 {[%emt 0:01:21]} Rb8 {[%emt 0:00:44]} 33. Rd3 {[%emt 0:06:50]} Rb2+ {[%emt 0:01:44]} 34. Kh3 {[%emt 0:00:10]} Qc7 {[%emt 0:00:39]} 35. Qg3 {[%emt 0:00:15]} Qc5 {[%emt 0:00:49]} (35... Qe7 $16 36. Bb3 Kg7) 36. Qd6 {[%emt 0:00:57]} Qc1 {[%emt 0:03:15]} 37. Qd8+ {[%emt 0:01:16]} Kg7 {[%emt 0:00:01]} 38. Qd4+ {[%emt 0:02:37]} (38. Qxa5 Qh6+ 39. Kg3 Qh2+ 40. Kf3 Rf2+ 41. Ke4 Qf4+ 42. Kd5 Qg5+ 43. Kc6 Qxa5 $19) 38... f6 $2 {[%emt 0:01:20]} (38... Kg8 $18 39. Re3 Rb8) 39. Re3 $2 {[%emt 0:03:25]} (39. Qd7+ {mates} Kh6 40. Qe7 Qc8 41. Bf3 (41. Qxf6 Rh2+ 42. Kg3 Rg2+ 43. Kxg2 Qxg4+ 44. Kh2 Qg1+ 45. Kh3 Qg3+ 46. Rxg3 $11) 41... Qc4 42. Qf8+ (42. Qxf6 Rh2+ 43. Kg3 Rh3+ 44. Kf2 Rh2+ 45. Kg1 Qc1+ 46. Rd1 Qe3+ 47. Kxh2 Qg1+ 48. Kh3 Qh2+ 49. Kxh2 $11) (42. g5+ Kxg5 43. Rd5+ Kf4 $18) 42... Kg5 43. Rd5+ Qxd5 44. Bxd5) 39... Qd2 $2 {[%emt 0:04:28] [#]} (39... Rb7 $18 40. Bf3 Rf7) 40. Re7+ $1 {[%emt 0:00:00]} Kh6 {[%emt 0:00:00]} 41. g5+ $1 {[%emt 0:00:47]} (41. Qxf6 $2 Qh2#) 41... Qxg5 {[%emt 0:01:31]} 42. Qxb2 {[%emt 0:00:22]} 1-0

[Event "Icelandic Team-ch Kvika Leagu 2023-24"]
[Site "Reykjavik"]
[Date "2024.03.02"]
[Round "7"]
[White "Kazakouski, Valery"]
[Black "Gretarsson, Helgi Ass"]
[Result "1-0"]
[ECO "D02"]
[WhiteElo "2608"]
[BlackElo "2477"]
[Annotator "RC"]
[PlyCount "119"]
[EventDate "2024.02.29"]
[EventType "team-tourn"]
[EventCountry "ISL"]
[SourceTitle "playchess.com"]
[Source "ChessBase"]
[SourceQuality "1"]
[TimeControl "40/5400+30:900+30"]

1. Nf3 {[%emt 0:00:21]} d5 {[%emt 0:00:09]} 2. g3 {[%emt 0:00:11]} Nd7 {[%emt 0:03:50]} 3. d4 {[%emt 0:00:21]} Nb6 {[%emt 0:00:11]} 4. Bg2 {[%emt 0:01:00]} Bf5 {[%emt 0:00:46]} 5. Nc3 {[%emt 0:00:19]} h6 {[%emt 0:00:37]} 6. a4 {[%emt 0:21:04]} a5 {[%emt 0:00:40]} 7. Nd2 {[%emt 0:04:34]} e6 {[%emt 0:27:45]} 8. e4 {[%emt 0:00:25]} Bh7 {[%emt 0:00:05]} 9. exd5 {[%emt 0:10:07]} exd5 {[%emt 0:00:01]} 10. Nb3 {[%emt 0:00:25]} c6 {[%emt 0:05:54]} 11. Qe2+ {[%emt 0:04:49]} Be7 {[%emt 0:00:38]} 12. Nc5 {[%emt 0:04:36]} Ra7 {[%emt 0:03:41]} 13. O-O {[%emt 0:06:01]} Nf6 {[%emt 0:08:20]} 14. Re1 {[%emt 0:02:55]} Nc8 {[%emt 0:00:57]} 15. Bf4 {[%emt 0:06:55]} O-O {[%emt 0:05:04]} 16. Bb8 {[%emt 0:11:04]} Ra8 {[%emt 0:00:24]} 17. Be5 {[%emt 0:00:06]} b6 {[%emt 0:13:34]} 18. Nd3 {[%emt 0:00:08]} Nd6 {[%emt 0:02:23]} 19. Bf4 {[%emt 0:02:08]} Re8 {[%emt 0:02:10]} 20. Ne5 {[%emt 0:00:08]} Qc8 {[%emt 0:00:51]} 21. Qd2 {[%emt 0:01:13]} Bf8 {[%emt 0:10:22]} 22. Re2 {[%emt 0:02:53]} Qb7 {[%emt 0:01:14]} 23. Rae1 {[%emt 0:01:08]} Re7 {[%emt 0:01:27]} 24. h4 {[%emt 0:03:17]} Rae8 {[%emt 0:01:58]} 25. Qd1 {[%emt 0:02:15]} Bf5 {[%emt 0:03:18]} 26. Kh2 {[%emt 0:03:34]} Nde4 {[%emt 0:00:44]} 27. Nxe4 {[%emt 0:01:56]} dxe4 {[%emt 0:00:38]} 28. f3 {[%emt 0:02:05]} exf3 {[%emt 0:03:13]} 29. Bxf3 {[%emt 0:00:02]} Nd5 {[%emt 0:00:09]} 30. c4 {[%emt 0:02:16]} Nxf4 {[%emt 0:00:37]} 31. gxf4 {[%emt 0:00:42]} Qc7 {[%emt 0:01:45]} 32. Bxc6 {[%emt 0:03:31]} Rxe5 {[%emt 0:00:06]} 33. Rxe5 {[%emt 0:00:14]} Rxe5 {[%emt 0:00:28]} 34. Rxe5 {[%emt 0:00:23]} Qxc6 {[%emt 0:00:20]} 35. Rxf5 {[%emt 0:00:38]} Qe4 {[%emt 0:00:05]} 36. Rd5 {[%emt 0:01:39]} Qxf4+ {[%emt 0:00:15]} 37. Kg2 {[%emt 0:00:10]} Bd6 {[%emt 0:00:09]} 38. Qf3 {[%emt 0:00:44]} Qh2+ {[%emt 0:02:05]} 39. Kf1 {[%emt 0:00:01]} g6 {[%emt 0:00:18]} 40. c5 {[%emt 0:00:00]} bxc5 {[%emt 0:00:00]} 41. dxc5 {[%emt 0:02:41]} Bg3 {[%emt 0:01:35]} 42. h5 {[%emt 0:02:42]} Qh3+ {[%emt 0:04:26]} 43. Ke2 {[%emt 0:01:09]} Qh2+ {[%emt 0:06:48]} 44. Kd1 {[%emt 0:01:20]} g5 {[%emt 0:00:48]} 45. c6 {[%emt 0:02:43]} Bf4 {[%emt 0:01:56]} 46. Rd8+ {[%emt 0:05:26]} Kg7 {[%emt 0:00:01]} 47. Qc3+ {[%emt 0:00:07]} Be5 {[%emt 0:00:05]} 48. Qc5 {[%emt 0:00:44]} Qxh5+ {[%emt 0:02:14]} 49. Kd2 {[%emt 0:01:55]} Qh2+ {[%emt 0:01:28]} 50. Kd3 {[%emt 0:00:21]} Qxb2 {[%emt 0:02:57]} 51. Qf8+ {[%emt 0:00:37]} Kg6 {[%emt 0:00:01]} 52. Qg8+ {[%emt 0:00:08]} Kf6 {[%emt 0:00:19]} 53. Rd6+ {[%emt 0:01:37]} Kf5 {[%emt 0:00:37]} 54. Qxf7+ {[%emt 0:00:02]} Kg4 {[%emt 0:00:02]} 55. Qc4+ {[%emt 0:00:20]} Kf3 {[%emt 0:00:30]} 56. Qe4+ {[%emt 0:01:30]} Kf2 {[%emt 0:01:23]} 57. Qe3+ {[%emt 0:00:02]} Kf1 {[%emt 0:00:02]} 58. Rxh6 {[%emt 0:01:58]} Qb1+ {[%emt 0:01:32]} 59. Kc4 {[%emt 0:00:11]} Qc2+ {[%emt 0:00:33]} 60. Kd5 {[%emt 0:00:21]} 1-0

[Event "Icelandic Team-ch Kvika Leagu 2023-24"]
[Site "Reykjavik"]
[Date "2024.03.01"]
[Round "7"]
[White "Lomasov, Semyon"]
[Black "Pakleza, Zbigniew"]
[Result "1/2-1/2"]
[ECO "B12"]
[WhiteElo "2565"]
[BlackElo "2482"]
[Annotator "RC"]
[PlyCount "47"]
[EventDate "2024.02.29"]
[EventType "team-tourn"]
[EventCountry "ISL"]
[SourceTitle "playchess.com"]
[Source "ChessBase"]
[SourceQuality "1"]
[TimeControl "40/5400+30:900+30"]

1. e4 {[%emt 0:00:09]} c6 {[%emt 0:00:02]} 2. d4 {[%emt 0:00:14]} d5 {[%emt 0:00:01]} 3. e5 {[%emt 0:00:05]} Bf5 {[%emt 0:00:06]} 4. h4 {[%emt 0:00:07]} h5 {[%emt 0:00:22]} 5. Bd3 {[%emt 0:00:24]} Bxd3 {[%emt 0:00:06]} 6. Qxd3 {[%emt 0:00:04]} e6 {[%emt 0:00:07]} 7. Nf3 {[%emt 0:01:45]} Ne7 {[%emt 0:12:08]} 8. Bg5 {[%emt 0:02:18]} Qb6 {[%emt 0:00:13]} 9. Nbd2 {[%emt 0:03:14]} Qa6 {[%emt 0:09:16]} 10. c4 {[%emt 0:00:55]} Nf5 {[%emt 0:00:48]} 11. O-O {[%emt 0:01:27]} Nd7 {[%emt 0:03:50]} 12. Rfd1 {[%emt 0:07:42]} dxc4 {[%emt 0:05:49]} 13. Nxc4 {[%emt 0:01:22]} Nb6 {[%emt 0:00:14]} 14. b3 {[%emt 0:11:26]} Nd5 {[%emt 0:03:06]} 15. a3 {[%emt 0:08:32]} Kd7 {[%emt 0:22:19]} 16. Qc2 {[%emt 0:38:14]} Rc8 {[%emt 0:17:21]} 17. Ne3 {[%emt 0:00:00]} Nfe7 {[%emt 0:04:07]} 18. Nc4 {[%emt 0:00:00]} Nf5 {[%emt 0:00:10]} 19. b4 {[%emt 0:02:15]} Rc7 {[%emt 0:03:51]} 20. Qb3 {[%emt 0:05:26]} Kc8 {[%emt 0:06:01]} 21. Bd2 {[%emt 0:00:22]} Nb6 {[%emt 0:01:12]} 22. Nxb6+ {[%emt 0:06:42]} Qxb6 {[%emt 0:00:05]} 23. a4 {[%emt 0:01:01]} Be7 {[%emt 0:01:18]} 24. b5 {[%emt 0:06:52]} 1/2-1/2

[Event "Icelandic Team-ch Kvika Leagu 2023-24"]
[Site "Reykjavik"]
[Date "2024.03.02"]
[Round "7"]
[White "Urkedal, Frode Olav Olsen"]
[Black "Donchenko, Alexander"]
[Result "1-0"]
[ECO "D14"]
[WhiteElo "2536"]
[BlackElo "2631"]
[Annotator "RC"]
[PlyCount "99"]
[EventDate "2024.02.29"]
[EventType "team-tourn"]
[EventCountry "ISL"]
[SourceTitle "playchess.com"]
[Source "ChessBase"]
[SourceQuality "1"]
[TimeControl "40/5400+30:900+30"]

1. d4 {[%emt 0:00:02]} Nf6 {[%emt 0:00:07]} 2. c4 {[%emt 0:00:04]} c6 {[%emt 0:00:05]} 3. Nc3 {[%emt 0:03:11]} d5 {[%emt 0:00:07]} 4. cxd5 {[%emt 0:01:01]} cxd5 {[%emt 0:00:07]} 5. Bf4 {[%emt 0:00:33]} Nc6 {[%emt 0:00:15]} 6. e3 {[%emt 0:00:09]} Bf5 {[%emt 0:00:16]} 7. Nf3 {[%emt 0:00:48]} e6 {[%emt 0:00:16]} 8. Bd3 {[%emt 0:03:40]} Bxd3 {[%emt 0:00:31]} 9. Qxd3 {[%emt 0:00:05]} Be7 {[%emt 0:00:55]} 10. h3 {[%emt 0:00:22]} O-O {[%emt 0:00:52]} 11. O-O {[%emt 0:00:09]} a6 {[%emt 0:01:52]} 12. Rfc1 {[%emt 0:02:50]} Rc8 {[%emt 0:04:35]} 13. Ne5 {[%emt 0:06:01]} Nxe5 {[%emt 0:09:05]} 14. Bxe5 {[%emt 0:02:38]} Nd7 {[%emt 0:00:34]} 15. Bh2 {[%emt 0:01:36]} Nb6 {[%emt 0:00:58]} 16. Rc2 {[%emt 0:08:53]} Nc4 {[%emt 0:05:07]} 17. b3 {[%emt 0:04:00]} Na3 {[%emt 0:10:42]} 18. Rcc1 {[%emt 0:00:37]} b5 {[%emt 0:09:45]} 19. Ne2 {[%emt 0:08:11]} Qd7 {[%emt 0:03:38]} 20. Qd2 {[%emt 0:07:32]} g5 {[%emt 0:01:50]} 21. h4 {[%emt 0:01:53]} h6 {[%emt 0:02:23]} 22. hxg5 {[%emt 0:00:08]} hxg5 {[%emt 0:00:06]} 23. f4 {[%emt 0:00:47]} Rxc1+ {[%emt 0:19:49]} 24. Rxc1 {[%emt 0:00:53]} Rc8 {[%emt 0:00:38]} 25. fxg5 {[%emt 0:07:05]} Bxg5 {[%emt 0:00:43]} 26. Bf4 {[%emt 0:01:55]} Bh4 {[%emt 0:04:27]} 27. Qa5 {[%emt 0:09:03]} Rxc1+ {[%emt 0:10:03]} 28. Nxc1 {[%emt 0:00:19]} Nc2 {[%emt 0:05:42]} 29. Qc3 {[%emt 0:05:26]} Na3 {[%emt 0:00:31]} 30. Nd3 {[%emt 0:01:43]} Be7 {[%emt 0:01:14]} 31. Nc5 {[%emt 0:01:30]} Qc6 {[%emt 0:01:16]} 32. Qa5 {[%emt 0:03:23]} Nc2 {[%emt 0:03:57]} 33. Qc3 {[%emt 0:01:40]} Na3 {[%emt 0:00:03]} 34. Qc1 {[%emt 0:01:45]} b4 {[%emt 0:02:24]} 35. Qe1 {[%emt 0:00:06]} e5 {[%emt 0:00:03]} 36. Bxe5 {[%emt 0:01:18]} Qg6 {[%emt 0:00:41]} 37. Qg3 {[%emt 0:14:15]} Qxg3 {[%emt 0:00:57]} 38. Bxg3 {[%emt 0:00:01]} Nb5 {[%emt 0:02:17]} 39. Nxa6 {[%emt 0:00:20]} Nc3 {[%emt 0:00:03]} 40. Kf1 {[%emt 0:00:00]} Nxa2 {[%emt 0:00:00]} 41. Be1 {[%emt 0:04:39]} Bd6 {[%emt 0:03:25]} 42. Bd2 {[%emt 0:00:25]} Kg7 {[%emt 0:01:18]} 43. Ke2 {[%emt 0:02:51]} Kg6 {[%emt 0:03:39]} 44. Nc5 {[%emt 0:00:53]} Kf5 {[%emt 0:02:31]} 45. Kd3 {[%emt 0:01:20]} Be7 {[%emt 0:01:15]} 46. Kc2 {[%emt 0:01:59]} Kg4 {[%emt 0:00:16]} 47. Kb2 {[%emt 0:00:19]} Nc3 {[%emt 0:00:06]} 48. Bxc3 {[%emt 0:00:04]} bxc3+ {[%emt 0:00:05]} 49. Kxc3 {[%emt 0:00:06]} Kg3 {[%emt 0:00:15]} 50. Nd3 {[%emt 0:00:19]} 1-0